fUST/lending_fUST_20250916
["ID","MTS","AMOUNT","RATE_DAILY","PERIOD"]
[385739183,1757998240454,-151.0,0.00021173,2]
[385739184,1757998240463,-188.47086464,0.00021173,2]
[385739185,1757998240472,-163.33034496,0.00021173,2]
[385739186,1757998240481,-151.85723374,0.00021173,2]
[385739187,1757998240490,-151.0,0.00021173,2]
[385739188,1757998240500,-506.97241117,0.00021173,2]
[385739189,1757998240509,-500.0,0.00021173,2]
[385739190,1757998240518,-500.0,0.00021173,2]
[385739191,1757998240527,-151.0,0.00021173,2]
[385739192,1757998240536,-450.0,0.00021247,2]
[385739193,1757998240545,-300.0,0.00021316,20]
[385739194,1757998240554,-300.0,0.00021316,20]
[385739195,1757998240563,-300.0,0.00021316,20]
[385739196,1757998240573,-300.0,0.00021316,20]
[385739197,1757998240582,-300.0,0.00021316,20]
[385739198,1757998240592,-300.0,0.00021316,20]
[385739199,1757998240602,-300.0,0.00021316,20]
[385739200,1757998240611,-300.0,0.00021316,20]
[385739201,1757998240620,-300.0,0.00021317,20]
[385739202,1757998240630,-300.0,0.00021317,20]
[385739203,1757998240639,-337.0,0.00021342,2]
[385739204,1757998240648,-1715.72494839,0.00021345,2]
[385739205,1757998240657,-600.0,0.00021384,2]
[385739206,1757998240666,-1002.05338767,0.00021421,2]
[385739207,1757998240675,-501.52175241,0.00021421,2]
[385739208,1757998240685,-1000.0,0.00021421,2]
[385739209,1757998240694,-368.93907161,0.00021421,2]
[385739210,1757998240703,-487.5523461,0.00021421,2]
[385739211,1757998240712,-502.83256477,0.00021421,2]
[385739212,1757998240721,-249.61445996,0.00021447,2]
[385739213,1757998240731,-151.0,0.00021447,2]
[385739214,1757998240740,-151.0,0.00021447,2]
[385739215,1757998240749,-151.0,0.00021447,2]
[385739216,1757998240758,-151.0,0.00021447,2]
[385739217,1757998240767,-238.36251113,0.00021447,2]
[385739218,1757998240777,-151.0,0.00021447,2]
[385739219,1757998240786,-151.0,0.00021447,2]
[385739220,1757998240795,-151.0,0.00021447,2]
[385739221,1757998240805,-500.0,0.00021447,2]
[385739222,1757998240814,-165.01437502,0.00021447,2]
[385739223,1757998240823,-168.15323708,0.00021447,2]
[385739224,1757998240833,-152.5759938,0.00021447,2]
[385739225,1757998240842,-170.13619277,0.00021447,2]
[385739226,1757998240851,-153.25995394,0.00021447,2]
[385739227,1757998240860,-394.21450095,0.00021447,2]
[385739228,1757998240870,-317.31460948,0.00021447,2]
[385739229,1757998240879,-153.61255557,0.00021447,2]
[385739230,1757998240888,-502.34057584,0.00021521,2]
[385739231,1757998240897,-1000.0,0.00021521,2]
[385739232,1757998240906,-1000.0,0.00021521,2]
[385739233,1757998240915,-1000.0,0.00021521,2]
[385739234,1757998240925,-1000.0,0.00021521,2]
[385739235,1757998240935,-1000.0,0.00021521,2]
[385739236,1757998240945,-1000.0,0.00021521,2]
[385739237,1757998240955,-500.0,0.00021521,2]
[385739238,1757998240964,-219.55204424,0.00021521,2]
[385739239,1757998240973,-1000.0,0.00021521,2]
[385739240,1757998240983,-170.00163542,0.00021521,2]
[385739241,1757998240993,-1000.0,0.00021521,2]
[385739242,1757998241002,-1000.0,0.00021521,2]
[385739243,1757998241011,-927.07863972,0.00021521,2]
[385739244,1757998241020,-1715.72494839,0.00021581,2]
[385739245,1757998241029,-438.0,0.00021587,2]
[385739246,1757998241038,-196.88819794,0.00021721,2]
[385739247,1757998241048,-151.0,0.00021721,2]
[385739248,1757998241058,-177.60664321,0.00021721,2]
[385739249,1757998241067,-151.0,0.00021721,2]
[385739250,1757998241076,-200.24827857,0.00021721,2]
[385739251,1757998241085,-199.77256121,0.00021721,2]
[385739252,1757998241095,-244.90816671,0.00021721,2]
[385739253,1757998241104,-500.0,0.00021721,2]
[385739254,1757998241113,-674.03,0.00021817,2]
[385739255,1757998241122,-1715.72494839,0.00021817,2]
[385739256,1757998241133,-156.052,0.00021916,2]
[385739257,1757998241142,-155.81930119,0.00021917,2]
[385739258,1757998241152,-179.59981203,0.00021917,3]
[385739259,1757998241161,-461.76055794,0.00021917,2]
[385739260,1757998241170,-464.54992872,0.00021917,2]
[385739261,1757998241179,-480.0,0.00021917,2]
[385739262,1757998241188,-480.0,0.00021917,2]
[385739263,1757998241197,-482.89895134,0.00021917,2]
[385739264,1757998241206,-480.0,0.00021917,2]
[385739265,1757998241220,-482.54861047,0.00021917,2]
[385739266,1757998241230,-480.0,0.00021917,2]
[385739267,1757998241239,-480.0,0.00021917,2]
[385739268,1757998241252,-480.0,0.00021917,2]
[385739269,1757998241262,-486.24179082,0.00021917,2]
[385739270,1757998241273,-510.28193074,0.00021917,2]
[385739271,1757998241282,-481.34969073,0.00021917,2]
[385739272,1757998241291,-483.7475594,0.00021917,2]
[385739273,1757998241300,-480.0,0.00021917,2]
[385739274,1757998241309,-480.0,0.00021917,2]
[385739275,1757998241319,-482.84894603,0.00021917,2]
[385739276,1757998241328,-481.61128168,0.00021917,2]
[385739277,1757998241337,-480.0,0.00021917,2]
[385739278,1757998241346,-482.2938915,0.00021917,2]
[385739279,1757998241355,-482.22440863,0.00021917,2]
[385739280,1757998241364,-492.70515079,0.00021917,2]
[385739281,1757998241373,-483.1320794,0.00021917,2]
[385739282,1757998241382,-480.0,0.00021917,2]
[385739283,1757998241392,-482.63368206,0.00021917,2]
[385739284,1757998241401,-480.0,0.00021917,2]
[385739285,1757998241410,-512.02354938,0.00021917,2]
[385739286,1757998241419,-578.42382827,0.00021917,2]
[385739287,1757998241430,-480.0,0.00021917,2]
[385739288,1757998241440,-480.0,0.00021917,2]
[385739289,1757998241449,-480.0,0.00021917,2]
[385739290,1757998241458,-500.0,0.00021917,2]
[385739291,1757998241467,-500.0,0.00021917,2]
[385739292,1757998241476,-428.53839059,0.00021917,2]
[385739293,1757998241486,-480.0,0.00021917,2]
[385739294,1757998241495,-480.0,0.00021917,2]
[385739295,1757998241506,-480.0,0.00021917,2]
[385739296,1757998241517,-480.0,0.00021917,2]
[385739297,1757998241526,-480.0,0.00021917,2]
[385739298,1757998241535,-193.11695866,0.00021917,2]
[385739299,1757998241544,-480.0,0.00021917,2]
[385739300,1757998241554,-480.0,0.00021917,2]
[385739301,1757998241563,-485.75558223,0.00021917,2]
[385739302,1757998241573,-482.35042784,0.00021917,2]
[385739303,1757998241582,-487.45238174,0.00021917,2]
[385739304,1757998241591,-500.0,0.00021917,2]
[385739305,1757998241600,-500.0,0.00021917,2]
[385739306,1757998241610,-500.0,0.00021917,2]
[385739307,1757998241621,-500.0,0.00021917,2]
[385739308,1757998241630,-500.0,0.00021917,2]
[385739309,1757998241639,-500.0,0.00021917,2]
[385739310,1757998241648,-500.0,0.00021917,2]
[385739311,1757998241657,-500.0,0.00021917,2]
[385739312,1757998241666,-522.86105062,0.00021917,2]
[385739313,1757998241675,-484.15126909,0.00021917,2]
[385739314,1757998241684,-483.72614278,0.00021917,2]
[385739315,1757998241693,-480.0,0.00021917,2]
[385739316,1757998241703,-482.98219597,0.00021917,2]
[385739317,1757998241712,-486.57532228,0.00021917,2]
[385739318,1757998241721,-485.4358921,0.00021917,2]
[385739319,1757998241730,-480.0,0.00021917,2]
[385739320,1757998241739,-480.0,0.00021917,2]
[385739321,1757998241749,-480.0,0.00021917,2]
[385739322,1757998241758,-385.03105187,0.00021917,2]
[385739323,1757998241767,-439.9465183,0.00021917,2]
[385739324,1757998241777,-488.54173839,0.00021917,2]
[385739325,1757998241786,-489.40077961,0.00021917,2]
[385739326,1757998241795,-481.4,0.00021917,2]
[385739327,1757998241803,-494.87741621,0.00021917,2]
[385739328,1757998241813,-169.75627393,0.00021917,2]
[385739329,1757998241822,-482.61081769,0.00021917,2]
[385739330,1757998241831,-465.67267672,0.00021917,2]
[385739331,1757998241840,-480.0,0.00021917,2]
[385739332,1757998241849,-314.68369324,0.00021917,2]
[385739333,1757998241858,-486.83389113,0.00021917,2]
[385739334,1757998241869,-468.23867986,0.00021917,2]
[385739335,1757998241879,-486.7455634,0.00021917,2]
[385739336,1757998241889,-485.95709016,0.00021917,2]
[385739337,1757998241899,-470.89037462,0.00021917,2]
[385739338,1757998241908,-488.05780485,0.00021917,2]
[385739339,1757998241916,-487.07935437,0.00021917,2]
[385739340,1757998241926,-442.36512865,0.00021917,2]
[385739341,1757998241935,-480.0,0.00021917,2]
[385739342,1757998241944,-468.77117198,0.00021917,2]
[385739343,1757998241955,-467.70068758,0.00021917,2]
[385739344,1757998241964,-480.0,0.00021917,2]
[385739345,1757998241973,-480.0,0.00021917,2]
[385739346,1757998241982,-466.61298318,0.00021917,2]
[385739347,1757998241991,-464.61979719,0.00021917,2]
[385739348,1757998242001,-480.0,0.00021917,2]
[385739349,1757998242011,-480.0,0.00021917,2]
[385739350,1757998242020,-489.02442764,0.00021917,2]
[385739351,1757998242029,-543.24401079,0.00021917,2]
[385739352,1757998242039,-480.0,0.00021917,2]
[385739353,1757998242048,-154.738351,0.00021917,2]
[385739354,1757998242057,-480.0,0.00021917,2]
[385739355,1757998242066,-471.28859209,0.00021917,2]
[385739356,1757998242075,-480.0,0.00021917,2]
[385739357,1757998242084,-467.45736426,0.00021917,2]
[385739358,1757998242092,-480.0,0.00021917,2]
[385739359,1757998242101,-480.0,0.00021917,2]
[385739360,1757998242111,-498.61244455,0.00021917,2]
[385739361,1757998242120,-509.10490172,0.00021917,2]
[385739362,1757998242130,-155.445078,0.00021917,2]
[385739363,1757998242141,-480.0,0.00021917,2]
[385739364,1757998242152,-480.0,0.00021917,2]
[385739365,1757998242160,-480.0,0.00021917,2]
[385739366,1757998242169,-466.05891538,0.00021917,2]
[385739367,1757998242179,-493.3445083,0.00021917,2]
[385739368,1757998242188,-151.0,0.00021917,2]
[385739369,1757998242197,-1009.19979243,0.00021917,2]
[385739370,1757998242207,-480.0,0.00021917,2]
[385739371,1757998242217,-485.14664405,0.00021917,2]
[385739372,1757998242230,-480.0,0.00021917,2]
[385739373,1757998242241,-482.49795421,0.00021917,2]
[385739374,1757998242251,-462.99680815,0.00021917,2]
[385739375,1757998242261,-480.0,0.00021917,2]
[385739376,1757998242271,-480.0,0.00021917,2]
[385739377,1757998242282,-480.0,0.00021917,2]
[385739378,1757998242293,-465.11570822,0.00021917,2]
[385739379,1757998242302,-468.02304665,0.00021917,2]
[385739380,1757998242312,-462.19500077,0.00021917,2]
[385739381,1757998242322,-480.0,0.00021917,2]
[385739382,1757998242331,-480.0,0.00021917,2]
[385739383,1757998242340,-231.53961664,0.00021917,2]
[385739384,1757998242351,-480.0,0.00021917,2]
[385739385,1757998242360,-575.14382805,0.00021917,2]
[385739386,1757998242369,-472.34677947,0.00021917,2]
[385739387,1757998242379,-480.0,0.00021917,2]
[385739388,1757998242387,-462.23652611,0.00021917,2]
[385739389,1757998242398,-480.0,0.00021917,2]
[385739390,1757998242407,-462.99820776,0.00021917,2]
[385739391,1757998242416,-469.6489429,0.00021917,2]
[385739392,1757998242425,-464.89829515,0.00021917,2]
[385739393,1757998242434,-569.43925677,0.00021917,2]
[385739394,1757998242443,-492.93845048,0.00021917,2]
[385739395,1757998242452,-475.4143017,0.00021917,2]
[385739396,1757998242462,-450.24233419,0.00021917,2]
[385739397,1757998242471,-480.0,0.00021917,2]
[385739398,1757998242483,-472.05069032,0.00021917,2]
[385739399,1757998242494,-480.0,0.00021917,2]
[385739400,1757998242504,-463.21920225,0.00021917,2]
[385739401,1757998242513,-480.0,0.00021917,2]
[385739402,1757998242522,-480.0,0.00021917,2]
[385739404,1757998242531,-480.0,0.00021917,2]
[385739405,1757998242541,-461.7460389,0.00021917,2]
[385739406,1757998242552,-480.0,0.00021917,2]
[385739407,1757998242562,-151.0,0.00021917,2]
[385739408,1757998242571,-463.9029876,0.00021917,2]
[385739409,1757998242580,-480.0,0.00021917,2]
[385739411,1757998242589,-480.0,0.00021917,2]
[385739412,1757998242598,-471.63088822,0.00021917,2]
[385739413,1757998242607,-463.00077379,0.00021917,2]
[385739414,1757998242615,-407.04400014,0.00021917,2]
[385739415,1757998242625,-480.0,0.00021917,2]
[385739417,1757998242634,-151.0,0.00021917,2]
[385739418,1757998242643,-480.0,0.00021917,2]
[385739419,1757998242652,-466.42925234,0.00021917,2]
[385739420,1757998242662,-462.64317986,0.00021917,2]
[385739421,1757998242671,-480.0,0.00021917,2]
[385739422,1757998242680,-482.20539499,0.00021917,2]
[385739423,1757998242689,-462.402542,0.00021917,2]
[385739424,1757998242698,-469.61158345,0.00021917,2]
[385739425,1757998242707,-480.0,0.00021917,2]
[385739426,1757998242793,-465.17336725,0.00021917,2]
[385739427,1757998242812,-469.28988979,0.00021917,2]
[385739428,1757998242821,-472.11574113,0.00021917,2]
[385739429,1757998242830,-597.9102473,0.00021917,2]
[385739430,1757998242839,-480.0,0.00021917,2]
[385739431,1757998242848,-151.0,0.00021917,2]
[385739432,1757998242857,-151.0,0.00021917,2]
[385739433,1757998242867,-151.0,0.00021917,2]
[385739434,1757998242877,-151.0,0.00021917,2]
[385739435,1757998242886,-480.0,0.00021917,2]
[385739436,1757998242896,-151.0,0.00021917,2]
[385739437,1757998242906,-151.0,0.00021917,2]
[385739438,1757998242915,-537.47889582,0.00021917,2]
[385739439,1757998242924,-480.0,0.00021917,2]
[385739440,1757998242934,-467.08533644,0.00021917,2]
[385739441,1757998242943,-480.0,0.00021917,2]
[385739442,1757998242953,-480.0,0.00021917,2]
[385739443,1757998242963,-461.10083384,0.00021917,2]
[385739444,1757998242972,-460.77305998,0.00021917,2]
[385739445,1757998242981,-480.0,0.00021917,2]
[385739446,1757998242991,-467.46905621,0.00021917,2]
[385739447,1757998243001,-480.0,0.00021917,2]
[385739448,1757998243011,-480.0,0.00021917,2]
[385739449,1757998243020,-487.62720452,0.00021917,2]
[385739450,1757998243029,-480.0,0.00021917,2]
[385739451,1757998243039,-480.0,0.00021917,2]
[385739452,1757998243048,-480.0,0.00021917,2]
[385739453,1757998243057,-470.00049215,0.00021917,2]
[385739454,1757998243067,-471.64633302,0.00021917,2]
[385739455,1757998243076,-480.0,0.00021917,2]
[385739456,1757998243086,-480.0,0.00021917,2]
[385739457,1757998243096,-500.0,0.00021917,2]
[385739459,1757998243105,-462.09653045,0.00021917,2]
[385739461,1757998243114,-243.18922283,0.00021917,2]
[385739463,1757998243124,-467.08190753,0.00021917,2]
[385739464,1757998243133,-480.0,0.00021917,2]
[385739465,1757998243142,-480.0,0.00021917,2]
[385739466,1757998243151,-480.0,0.00021917,2]
[385739467,1757998243161,-480.0,0.00021917,2]
[385739468,1757998243170,-462.78029667,0.00021917,2]
[385739469,1757998243179,-480.0,0.00021917,2]
[385739470,1757998243189,-151.0,0.00021917,2]
[385739471,1757998243198,-151.0,0.00021917,2]
[385739472,1757998243208,-151.0,0.00021917,2]
[385739473,1757998243218,-469.24373776,0.00021917,2]
[385739474,1757998243229,-151.0,0.00021917,2]
[385739475,1757998243238,-151.0,0.00021917,2]
[385739476,1757998243247,-288.212184,0.00021917,2]
[385739477,1757998243256,-586.90471744,0.00021917,2]
[385739478,1757998243266,-468.10708715,0.00021917,2]
[385739479,1757998243275,-151.0,0.00021917,2]
[385739480,1757998243284,-157.099397,0.00021917,2]
[385739481,1757998243293,-480.0,0.00021917,2]
[385739482,1757998243302,-480.0,0.00021917,2]
[385739483,1757998243312,-487.5404281,0.00021917,2]
[385739484,1757998243322,-469.90889622,0.00021917,2]
[385739485,1757998243331,-324.1074478,0.00021917,2]
[385739486,1757998243340,-484.68297499,0.00021917,2]
[385739487,1757998243349,-480.0,0.00021917,2]
[385739488,1757998243359,-464.59230258,0.00021917,2]
[385739489,1757998243368,-466.31683431,0.00021917,2]
[385739491,1757998243377,-480.0,0.00021917,2]
[385739492,1757998243387,-480.0,0.00021917,2]
[385739493,1757998243396,-464.48698324,0.00021917,2]
[385739494,1757998243405,-468.97165775,0.00021917,2]
[385739495,1757998243414,-465.15456973,0.00021917,2]
[385739496,1757998243423,-480.0,0.00021917,2]
[385739497,1757998243432,-480.0,0.00021917,2]
[385739498,1757998243441,-501.09622338,0.00021917,2]
[385739499,1757998243450,-480.0,0.00021917,2]
[385739501,1757998243459,-434.41094054,0.00021917,2]
[385739503,1757998243467,-480.0,0.00021917,2]
[385739504,1757998243476,-480.0,0.00021917,2]
[385739505,1757998243485,-469.91662688,0.00021917,2]
[385739506,1757998243494,-463.0992326,0.00021917,2]
[385739507,1757998243504,-465.28226658,0.00021917,2]
[385739508,1757998243512,-480.0,0.00021917,2]
[385739509,1757998243522,-480.0,0.00021917,2]
[385739510,1757998243532,-462.25045267,0.00021917,2]
[385739511,1757998243542,-468.67188597,0.00021917,2]
[385739512,1757998243553,-486.40794731,0.00021917,2]
[385739513,1757998243564,-480.0,0.00021917,2]
[385739514,1757998243574,-479.36328785,0.00021917,2]
[385739515,1757998243584,-480.0,0.00021917,2]
[385739516,1757998243594,-480.0,0.00021917,2]
[385739517,1757998243604,-480.0,0.00021917,2]
[385739518,1757998243613,-151.0,0.00021917,2]
[385739519,1757998243622,-151.0,0.00021917,2]
[385739520,1757998243633,-151.0,0.00021917,2]
[385739521,1757998243642,-151.0,0.00021917,2]
[385739522,1757998243652,-189.375256,0.00021917,2]
[385739523,1757998243661,-464.12343361,0.00021917,2]
[385739524,1757998243671,-480.0,0.00021917,2]
[385739525,1757998243680,-468.1404956,0.00021917,2]
[385739526,1757998243690,-480.0,0.00021917,2]
[385739527,1757998243699,-466.34238129,0.00021917,2]
[385739528,1757998243710,-473.37598234,0.00021917,2]
[385739529,1757998243720,-480.0,0.00021917,2]
[385739530,1757998243729,-480.0,0.00021917,2]
[385739531,1757998243738,-480.0,0.00021917,2]
[385739532,1757998243747,-480.0,0.00021917,2]
[385739533,1757998243757,-480.0,0.00021917,2]
[385739534,1757998243766,-151.0,0.00021917,2]
[385739535,1757998243776,-151.0,0.00021917,2]
[385739536,1757998243787,-940.86,0.00021917,2]
[385739537,1757998243797,-480.0,0.00021917,2]
[385739538,1757998243806,-480.0,0.00021917,2]
[385739539,1757998243815,-480.0,0.00021917,2]
[385739540,1757998243824,-473.37175771,0.00021917,2]
[385739541,1757998243833,-480.0,0.00021917,2]
[385739542,1757998243843,-480.0,0.00021917,2]
[385739543,1757998243852,-480.0,0.00021917,2]
[385739544,1757998243861,-480.0,0.00021917,2]
[385739545,1757998243871,-151.0,0.00021917,2]
[385739546,1757998243880,-151.0,0.00021917,2]
[385739547,1757998243890,-480.0,0.00021917,2]
[385739548,1757998243900,-151.0,0.00021917,2]
[385739549,1757998243909,-151.0,0.00021917,2]
[385739550,1757998243918,-480.0,0.00021917,2]
[385739551,1757998243927,-480.0,0.00021917,2]
[385739552,1757998243938,-502.74,0.00021917,2]
[385739553,1757998243947,-480.0,0.00021917,2]
[385739554,1757998243956,-480.0,0.00021917,2]
[385739555,1757998243966,-480.0,0.00021917,2]
[385739556,1757998243976,-480.0,0.00021917,2]
[385739557,1757998243985,-480.0,0.00021917,2]
[385739558,1757998243995,-480.0,0.00021917,2]
[385739559,1757998244004,-480.0,0.00021917,2]
[385739560,1757998244013,-191.600975,0.00021917,2]
[385739561,1757998244024,-191.600975,0.00021917,2]
[385739562,1757998244033,-480.0,0.00021917,2]
[385739563,1757998244044,-191.600975,0.00021917,2]
[385739564,1757998244054,-191.600975,0.00021917,2]
[385739565,1757998244064,-191.600975,0.00021917,2]
[385739566,1757998244074,-191.600975,0.00021917,2]
[385739567,1757998244083,-191.600975,0.00021917,2]
[385739568,1757998244093,-191.600975,0.00021917,2]
[385739569,1757998244103,-480.0,0.00021917,2]
[385739570,1757998244113,-480.0,0.00021917,2]
[385739571,1757998244123,-480.0,0.00021917,2]
[385739572,1757998244134,-465.41495787,0.00021917,2]
[385739573,1757998244145,-480.0,0.00021917,2]
[385739574,1757998244156,-432.86391495,0.00021917,2]
[385739575,1757998244165,-480.0,0.00021917,2]
[385739576,1757998244175,-480.0,0.00021917,2]
[385739577,1757998244185,-480.0,0.00021917,2]
[385739578,1757998244194,-480.0,0.00021917,2]
[385739579,1757998244203,-480.0,0.00021917,2]
[385739580,1757998244214,-174.217381,0.00021917,2]
[385739581,1757998244228,-4010.59,0.00021917,2]
[385739582,1757998244239,-174.217381,0.00021917,2]
[385739583,1757998244250,-174.217381,0.00021917,2]
[385739584,1757998244259,-174.217381,0.00021917,2]
[385739585,1757998244271,-480.0,0.00021917,2]
[385739586,1757998244281,-174.217381,0.00021917,2]
[385739587,1757998244290,-174.217381,0.00021917,2]
[385739588,1757998244301,-174.217381,0.00021917,2]
[385739589,1757998244311,-466.35324129,0.00021917,2]
[385739590,1757998244322,-174.217381,0.00021917,2]
[385739591,1757998244331,-532.76158333,0.00021917,2]
[385739592,1757998244340,-480.0,0.00021917,2]
[385739593,1757998244350,-480.0,0.00021917,2]
[385739594,1757998244359,-480.0,0.00021917,2]
[385739595,1757998244368,-480.0,0.00021917,2]
[385739596,1757998244378,-371.44676225,0.00021917,2]
[385739597,1757998244386,-480.0,0.00021917,2]
[385739598,1757998244395,-480.0,0.00021917,2]
[385739599,1757998244405,-480.0,0.00021917,2]
[385739600,1757998244414,-462.68099676,0.00021917,2]
[385739601,1757998244424,-460.6560228,0.00021917,2]
[385739602,1757998244433,-480.0,0.00021917,2]
[385739603,1757998244442,-151.0,0.00021917,2]
[385739604,1757998244451,-151.0,0.00021917,2]
[385739605,1757998244460,-151.0,0.00021917,2]
[385739606,1757998244469,-151.0,0.00021917,2]
[385739607,1757998244478,-480.0,0.00021917,2]
[385739608,1757998244487,-480.0,0.00021917,2]
[385739609,1757998244496,-480.0,0.00021917,2]
[385739610,1757998244509,-508.33,0.00021917,2]
[385739611,1757998244520,-469.82005669,0.00021917,2]
[385739612,1757998244529,-228.049257,0.00021917,2]
[385739613,1757998244539,-480.0,0.00021917,2]
[385739614,1757998244548,-500.0,0.00021917,2]
[385739615,1757998244558,-151.0,0.00021917,2]
[385739616,1757998244567,-165.416329,0.00021917,2]
[385739617,1757998244576,-480.0,0.00021917,2]
[385739618,1757998244586,-480.0,0.00021917,2]
[385739619,1757998244595,-480.0,0.00021917,2]
[385739620,1757998244603,-464.12774049,0.00021917,2]
[385739621,1757998244612,-480.0,0.00021917,2]
[385739622,1757998244621,-151.0,0.00021917,2]
[385739623,1757998244630,-151.0,0.00021917,2]
[385739624,1757998244640,-480.0,0.00021917,2]
[385739625,1757998244649,-151.0,0.00021917,2]
[385739626,1757998244658,-151.0,0.00021917,2]
[385739627,1757998244667,-462.29956393,0.00021917,2]
[385739628,1757998244676,-151.0,0.00021917,2]
[385739629,1757998244685,-151.0,0.00021917,2]
[385739630,1757998244695,-480.0,0.00021917,2]
[385739631,1757998244704,-151.0,0.00021917,2]
[385739632,1757998244713,-163.39873,0.00021917,2]
[385739633,1757998244722,-466.22347238,0.00021917,2]
[385739634,1757998244731,-151.0,0.00021917,2]
[385739635,1757998244742,-151.0,0.00021917,2]
[385739636,1757998244751,-480.0,0.00021917,2]
[385739637,1757998244761,-552.81,0.00021917,2]
[385739638,1757998244770,-584.37024212,0.00021917,2]
[385739639,1757998244779,-466.70728336,0.00021917,2]
[385739640,1757998244788,-480.0,0.00021917,2]
[385739641,1757998244797,-480.0,0.00021917,2]
[385739642,1757998244807,-480.0,0.00021917,2]
[385739643,1757998244817,-480.0,0.00021917,2]
[385739644,1757998244826,-462.51137773,0.00021917,2]
[385739645,1757998244835,-477.92165499,0.00021917,2]
[385739646,1757998244844,-480.0,0.00021917,2]
[385739647,1757998244857,-464.5531419,0.00021917,2]
[385739648,1757998244867,-480.0,0.00021917,2]
[385739649,1757998244877,-480.0,0.00021917,2]
[385739650,1757998244886,-480.0,0.00021917,2]
[385739651,1757998244896,-480.0,0.00021917,2]
[385739652,1757998244905,-467.09798883,0.00021917,2]
[385739653,1757998244916,-480.0,0.00021917,2]
[385739654,1757998244925,-462.82756429,0.00021917,2]
[385739655,1757998244935,-480.0,0.00021917,2]
[385739656,1757998244945,-474.22941731,0.00021917,2]
[385739657,1757998244954,-465.59263825,0.00021917,2]
[385739658,1757998244964,-480.0,0.00021917,2]
[385739659,1757998244974,-480.0,0.00021917,2]
[385739660,1757998244985,-480.0,0.00021917,2]
[385739661,1757998244994,-463.00955673,0.00021917,2]
[385739662,1757998245004,-480.0,0.00021917,2]
[385739663,1757998245013,-1472.95,0.00021917,2]
[385739664,1757998245022,-480.0,0.00021917,2]
[385739665,1757998245031,-480.0,0.00021917,2]
[385739666,1757998245040,-480.0,0.00021917,2]
[385739667,1757998245049,-480.0,0.00021917,2]
[385739668,1757998245059,-465.75296969,0.00021917,2]
[385739669,1757998245150,-480.0,0.00021917,2]
[385739670,1757998245160,-500.0,0.00021917,2]
[385739671,1757998245169,-500.0,0.00021917,2]
[385739672,1757998245178,-500.0,0.00021917,2]
[385739673,1757998245187,-500.0,0.00021917,2]
[385739674,1757998245195,-500.0,0.00021917,2]
[385739675,1757998245205,-288.60303952,0.00021917,2]
[385739676,1757998245214,-480.0,0.00021917,2]
[385739677,1757998245227,-462.52038613,0.00021917,2]
[385739678,1757998245236,-480.0,0.00021917,2]
[385739679,1757998245245,-482.61594293,0.00021917,2]
[385739680,1757998245255,-480.0,0.00021917,2]
[385739681,1757998245264,-480.0,0.00021917,2]
[385739682,1757998245273,-480.0,0.00021917,2]
[385739683,1757998245282,-463.07704881,0.00021917,2]
[385739684,1757998245291,-480.0,0.00021917,2]
[385739685,1757998245300,-480.0,0.00021917,2]
[385739686,1757998245308,-470.11623041,0.00021917,2]
[385739687,1757998245318,-480.0,0.00021917,2]
[385739688,1757998245329,-480.0,0.00021917,2]
[385739689,1757998245338,-480.0,0.00021917,2]
[385739690,1757998245346,-480.0,0.00021917,2]
[385739691,1757998245355,-589.37,0.00021917,2]